[Event "AUT Bundesliga 2024-25"]
[Site "Austria"]
[Date "2025.04.05"]
[Round "10.32"]
[White "Sarana, Alexey"]
[Black "Vitouch, Anatol"]
[Result "1-0"]
[Annotator "RC"]
[ECO "C43"]
[WhiteElo "2672"]
[BlackElo "2271"]
[PlyCount "147"]
[EventDate "2024.08.28"]
[EventType "team-tourn"]
[EventCountry "AUT"]
[SourceTitle "playchess.com"]
[Source "ChessBase"]
[SourceQuality "1"]
[TimeControl "40/5400+30:1800+30"]

1. e4 {[%emt 0:00:03]} e5 {[%emt 0:00:05]} 2. Nf3 {[%emt 0:00:11]} Nf6 {[%emt 0:00:05]} 3. d4 {[%emt 0:00:29]} Nxe4 {[%emt 0:00:12]} 4. Bd3 {[%emt 0:00:18]} Nc6 {[%emt 0:00:16]} 5. Nxe5 {[%emt 0:01:42]} Nxe5 {[%emt 0:02:56]} 6. dxe5 {[%emt 0:00:44]} d5 {[%emt 0:00:40]} 7. exd6 {[%emt 0:00:46]} Nc5 {[%emt 0:00:51]} 8. dxc7 {[%emt 0:03:35]} Nxd3+ {[%emt 0:00:16]} 9. cxd3 {[%emt 0:00:06]} Qxc7 {[%emt 0:00:15]} 10. O-O {[%emt 0:01:03]} Bd6 {[%emt 0:03:26]} 11. h3 {[%emt 0:00:05]} O-O {[%emt 0:00:20]} 12. Nc3 {[%emt 0:00:09]} Be6 {[%emt 0:05:43]} 13. Be3 {[%emt 0:03:28]} Rfd8 {[%emt 0:03:03]} 14. Rc1 {[%emt 0:01:18]} Qd7 {[%emt 0:07:51]} 15. Qf3 {[%emt 0:03:38]} Bb4 {[%emt 0:02:02]} 16. Rfd1 {[%emt 0:07:09]} Bxc3 {[%emt 0:01:22]} 17. bxc3 {[%emt 0:00:48]} Bxa2 {[%emt 0:01:57]} 18. Bd4 {[%emt 0:07:01]} Qc6 {[%emt 0:14:30]} 19. Qg3 {[%emt 0:01:18]} Qg6 {[%emt 0:00:34]} 20. Qxg6 {[%emt 0:00:11]} hxg6 {[%emt 0:00:05]} 21. Ra1 {[%emt 0:00:02]} Bb3 {[%emt 0:01:55]} 22. Rdb1 {[%emt 0:00:12]} Bc2 {[%emt 0:00:26]} 23. Rxb7 {[%emt 0:00:04]} a6 {[%emt 0:09:20]} 24. Bb6 {[%emt 0:05:36]} Rxd3 {[%emt 0:06:14]} 25. c4 {[%emt 0:00:04]} Rd1+ {[%emt 0:06:45]} 26. Rxd1 {[%emt 0:00:03]} Bxd1 {[%emt 0:00:07]} 27. c5 {[%emt 0:00:06]} Rc8 {[%emt 0:01:59]} 28. Ra7 {[%emt 0:02:14]} Be2 {[%emt 0:00:29]} 29. Bc7 {[%emt 0:00:06]} Bb5 {[%emt 0:00:28]} 30. Bd6 {[%emt 0:00:07]} g5 {[%emt 0:12:44]} 31. Kh2 {[%emt 0:01:22]} Rd8 {[%emt 0:03:46]} 32. Kg3 {[%emt 0:01:21]} Rd7 {[%emt 0:00:32]} 33. Ra8+ {[%emt 0:00:07]} Kh7 {[%emt 0:00:04]} 34. Rb8 {[%emt 0:02:34]} Kg6 {[%emt 0:01:51]} 35. h4 {[%emt 0:00:11]} gxh4+ {[%emt 0:00:26]} 36. Kxh4 {[%emt 0:00:02]} Kf5 {[%emt 0:01:56]} 37. g4+ {[%emt 0:00:21]} Ke6 {[%emt 0:02:31]} 38. f4 {[%emt 0:00:04]} Kd5 {[%emt 0:02:39]} 39. Ra8 {[%emt 0:00:52]} Kc6 {[%emt 0:05:38]} 40. f5 {[%emt 0:00:33]} Kd5 {[%emt 0:02:27]} 41. Kg5 {[%emt 0:33:59]} Bd3 {[%emt 0:13:14]} 42. Bf8 {[%emt 0:00:00]} Rc7 {[%emt 0:06:22]} 43. Kf4 {[%emt 0:00:00]} g6 {[%emt 0:01:46]} 44. Rd8+ {[%emt 0:00:00]} Kc4 {[%emt 0:00:08]} 45. Bd6 {[%emt 0:00:00]} Rc6 {[%emt 0:00:55]} 46. Rf8 {[%emt 0:00:00]} gxf5 {[%emt 0:00:31]} 47. g5 {[%emt 0:00:00]} Kd5 {[%emt 0:03:15]} 48. Rxf7 {[%emt 0:00:00]} Rc8 {[%emt 0:00:34]} 49. g6 {[%emt 0:00:00]} Kc6 {[%emt 0:04:03]} 50. g7 {[%emt 0:00:00]} Bc4 {[%emt 0:00:07]} 51. Ra7 {[%emt 0:00:00]} Kb5 {[%emt 0:02:54]} 52. Rb7+ {[%emt 0:00:00]} Kc6 {[%emt 0:00:45]} 53. Rb4 {[%emt 0:00:00]} Bg8 {[%emt 0:01:08]} 54. Rb6+ {[%emt 0:00:00]} Kd5 {[%emt 0:00:10]} 55. Rxa6 {[%emt 0:00:00]} Re8 {[%emt 0:01:23]} 56. Bf8 {[%emt 0:00:00]} Re6 {[%emt 0:00:32]} 57. Ra1 {[%emt 0:00:00]} Rh6 {[%emt 0:01:40]} 58. Rd1+ {[%emt 0:00:00]} Kc6 {[%emt 0:00:10]} 59. Rd8 {[%emt 0:00:00]} Rg6 {[%emt 0:00:22]} 60. Kxf5 {[%emt 0:00:00]} Bh7 {[%emt 0:00:07]} 61. Kf4 {[%emt 1:06:58]} Rg1 {[%emt 0:00:17]} 62. Rd6+ {[%emt 0:00:00]} Kc7 {[%emt 0:00:14]} 63. Rh6 {[%emt 0:00:00]} Bg8 {[%emt 0:00:28]} 64. Ra6 {[%emt 0:00:00]} Rf1+ {[%emt 0:00:17]} 65. Kg3 {[%emt 0:00:00]} Rg1+ {[%emt 0:00:15]} 66. Kf2 {[%emt 0:00:00]} Rg4 {[%emt 0:00:41]} 67. Bd6+ {[%emt 0:00:00]} Kd7 {[%emt 0:00:15]} 68. Be5 {[%emt 0:00:00]} Rc4 {[%emt 0:01:45]} 69. Rd6+ {[%emt 0:00:00]} Ke7 {[%emt 0:00:23]} 70. Bf6+ {[%emt 0:00:00]} Kf7 {[%emt 0:00:34]} 71. Bd4 {[%emt 0:00:00]} Ke7 {[%emt 0:00:29]} 72. Ke3 {[%emt 0:00:00]} Rc2 {[%emt 0:00:23]} 73. Rb6 {[%emt 0:00:00]} Bd5 {[%emt 0:00:37]} 74. Rb7+ {[%emt 0:00:00]} 1-0

[Event "AUT Bundesliga 2024-25"]
[Site "Austria"]
[Date "2025.04.05"]
[Round "10.33"]
[White "Gschiel, Alexander"]
[Black "Esipenko, Andrey"]
[Result "0-1"]
[Annotator "TA"]
[ECO "E15"]
[WhiteElo "2317"]
[BlackElo "2696"]
[PlyCount "86"]
[EventDate "2024.08.28"]
[EventType "team-tourn"]
[EventCountry "AUT"]
[SourceTitle "playchess.com"]
[Source "ChessBase"]
[SourceQuality "1"]
[TimeControl "40/5400+30:1800+30"]

{[%evp 21,86,10,14,0,0,12,10,-9,11,6,9,0,0,0,0,0,0,0,0,-3,-9,-12,-18,-20,-48,-60,-62,-43,-50,-55,-35,-68,-62,-70,-54,-77,-73,-72,-75,-74,-73,-83,-72,-60,-66,-75,-81,-93,-102,-135,-66,-284,-270,-425,-420,-645,-610,-704,-709,-941,-923,-1664,-1643,-1592,-1593,-29991,-29992]} 1. d4 {[%emt 0:00:05]} Nf6 {[%emt 0:00:26]} 2. c4 {[%emt 0:00:23]} e6 {[%emt 0:00:16]} 3. Nf3 {[%emt 0:00:19]} b6 {[%emt 0:00:19]} 4. g3 {[%emt 0:00:25]} Ba6 {[%emt 0:00:09]} 5. b3 {[%emt 0:00:18]} Bb4+ {[%emt 0:00:11]} 6. Bd2 {[%emt 0:00:36]} Be7 {[%emt 0:00:10]} 7. Bg2 {[%emt 0:00:32]} d5 {[%emt 0:00:37]} 8. cxd5 {[%emt 0:01:43]} exd5 {[%emt 0:00:08]} 9. O-O {[%emt 0:00:25]} O-O {[%emt 0:00:09]} 10. Nc3 {[%emt 0:02:38]} Nbd7 {[%emt 0:00:30][%cal Bb8d7,Bd7f8,Bf8e6,Be6f4][%mdl 32]} 11. Ne5 {[%emt 0:03:52][%cal Bf3e5,Be5c4,Bc4e3,Be3f5][%mdl 32]} Bb7 $1 {[%emt 0:00:08]} 12. Bf4 {[%emt 0:04:26] E15: Queen's Indian: 4 g3 sidelines, 4 g3 Ba6 and 4 g3 Bb7 early deviations.} Re8 {[%emt 0:00:12] 12...c6 is vanishing.} 13. Rc1 {[%emt 0:02:15]} Nf8 {[%emt 0:01:00]} 14. Nb5 {[%emt 0:05:45] The position is equal. The modern move.} c5 {[%emt 0:01:47]} 15. dxc5 {[%emt 0:13:33] 15.Bh3 is vanishing.} bxc5 {[%emt 0:00:08]} 16. Nc4 {[%emt 0:00:07]} Ne6 {[%emt 0:01:37] [#] Prevents Nc7} 17. Nbd6 {[%emt 0:08:11]} Nxf4 {[%emt 0:01:52]} 18. Nxb7 {[%emt 0:01:24]} Qc7 {[%emt 0:00:20]} 19. gxf4 {[%emt 0:01:22]} Qxb7 {[%emt 0:04:50]} 20. Ne3 $146 {[%emt 0:07:19][%cal Re3d5]} (20. e3 Rad8 21. Ne5 Bd6 22. Qc2 Qc7 23. Rfd1 h6 24. h3 Rc8 25. Bxd5 Bxe5 26. fxe5 Nxd5 27. Rxd5 Rxe5 {0-1 Parligras,M (2561)-Nguyen,T (2618) FIDE Grand Swiss 2023 (10)}) 20... Rad8 {[%emt 0:00:39]} 21. Qd3 {[%emt 0:01:07]} Qd7 {[%emt 0:11:29]} 22. Rfd1 {[%emt 0:03:23]} d4 {[%emt 0:00:51]} 23. Nf5 {[%emt 0:11:00][%cal Ob3b4]} Bf8 {[%emt 0:04:14]} 24. Ng3 {[%emt 0:06:14][%cal Ob3b4]} Qd6 {[%emt 0:06:18]} 25. Qf3 {[%emt 0:02:31]} Qe6 {[%emt 0:12:57]} 26. Rd2 {[%emt 0:01:43]} Qb6 {[%emt 0:12:11]} 27. Rdc2 {[%emt 0:08:56]} Qb8 {[%emt 0:03:33]} 28. Bf1 {[%emt 0:02:04]} Nd5 {[%emt 0:00:42]} 29. f5 {[%emt 0:00:15]} Qb6 {[%emt 0:02:15]} 30. Ne4 {[%emt 0:02:31][%cal Re4c5]} Nb4 {[%emt 0:00:33]} 31. Rd2 {[%emt 0:00:01]} Qh6 {[%emt 0:00:22][%cal Oe8e4]} 32. Rcd1 {[%emt 0:00:04] White is weak on the dark squares} Re5 {[%emt 0:06:07]} 33. Ng3 {[%emt 0:02:43][%cal Oe2e3]} Rde8 {[%emt 0:00:58] Black is much more active.} 34. Qb7 {[%emt 0:01:58] [#]} Nd5 $1 $36 {[%emt 0:01:34][%mdl 2048] Keeping White busy.} 35. Rc2 {[%emt 0:02:15][%cal Oe2e3]} Nf4 {[%emt 0:09:15]} ({Better is} 35... Nc3 $17 36. Rd3 Nd5) 36. Qxa7 $2 {[%emt 0:02:13] Loses the game.} ({White should try} 36. b4 $15) 36... Qg5 $19 {[%emt 0:00:29][%csl LRe2,LRf5][%cal Oh7h5]} 37. Qb7 {[%emt 0:03:17]} (37. b4 $142 h5 (37... Rxf5 38. bxc5 Rxc5 39. Rxc5 $11) (37... cxb4 38. Qxd4 Rd5 39. Qa1 $11) 38. bxc5) 37... h5 {[%emt 0:00:15]} (37... Rxf5 $2 38. Kh1 Rfe5 39. Qf3 $17) (37... Nxe2+ 38. Bxe2 Rxe2 39. Rxe2 Rxe2 40. a4 $19) 38. h4 {[%emt 0:00:31]} (38. b4 $142 h4 (38... Rxf5 $2 39. Kh1 $19) (38... Nxe2+ 39. Rxe2 Rxe2 40. Bxe2 $17) (38... cxb4 $2 39. Rxd4 h4 40. e3 $19) 39. bxc5) 38... Qxh4 {[%emt 0:00:07]} (38... Nxe2+ $2 {perishes.} 39. Rxe2 Qf6 40. Rxe5 (40. Nxh5 Qxf5 41. Rxe5 Rxe5 $18) 40... Rxe5 41. Bc4 $18 (41. Nxh5 Qxh4 42. Qf3 Bd6 $18)) 39. Qf3 {[%emt 0:00:56]} Qg5 {[%emt 0:00:11][%cal Oh5h4] Strongly threatening ...h4!. Against e4} 40. Kh2 {[%emt 0:00:05]} h4 {[%emt 0:00:10]} 41. Nh1 {[%emt 0:30:24]} Bd6 {[%emt 0:31:43]} 42. Qc6 {[%emt 0:00:00]} Bb8 {[%emt 0:00:00][%cal Rf4e2]} 43. Rxc5 {[%emt 0:00:00]} Nxe2 {[%emt 0:00:00] Weighted Error Value: White=0.80/Black=0.04 (flawless)   Loses game:     	White=1     	---        Mistake:       	White=2     	Black=1      Inaccurate:     	White=2     	---        OK:         	White=11    	Black=14     Best:        	---       	Black=4      Strong:       	---       	Black=1} 0-1

[Event "AUT Bundesliga 2024-25"]
[Site "Austria"]
[Date "2025.04.05"]
[Round "10.34"]
[White "Shimanov, Aleksandr"]
[Black "Rubil, Marko"]
[Result "1-0"]
[Annotator "RC"]
[ECO "C54"]
[WhiteElo "2578"]
[BlackElo "2276"]
[PlyCount "61"]
[EventDate "2024.08.28"]
[EventType "team-tourn"]
[EventCountry "AUT"]
[SourceTitle "playchess.com"]
[Source "ChessBase"]
[SourceQuality "1"]
[TimeControl "40/5400+30:1800+30"]

1. e4 {[%emt 0:00:11]} e5 {[%emt 0:00:06]} 2. Nf3 {[%emt 0:00:08]} Nc6 {[%emt 0:00:05]} 3. Bc4 {[%emt 0:00:32]} Bc5 {[%emt 0:00:07]} 4. c3 {[%emt 0:01:17]} Nf6 {[%emt 0:00:11]} 5. d3 {[%emt 0:00:06]} a6 {[%emt 0:00:12]} 6. O-O {[%emt 0:01:47]} d6 {[%emt 0:02:41]} 7. a4 {[%emt 0:00:49]} Ba7 {[%emt 0:00:44]} 8. Re1 {[%emt 0:00:54]} h6 {[%emt 0:05:58]} 9. Nbd2 {[%emt 0:00:57]} O-O {[%emt 0:04:13]} 10. h3 {[%emt 0:00:53]} Ne7 {[%emt 0:01:02]} 11. d4 {[%emt 0:01:57]} Ng6 {[%emt 0:00:33]} 12. Bd3 {[%emt 0:01:17]} Nh5 {[%emt 0:12:02]} 13. Nf1 {[%emt 0:04:35]} Nhf4 {[%emt 0:02:39]} 14. Bc2 {[%emt 0:00:49]} Qf6 {[%emt 0:07:06]} 15. Be3 {[%emt 0:05:35]} Rd8 {[%emt 0:08:09]} 16. Ng3 {[%emt 0:02:18]} h5 {[%emt 0:14:33]} 17. Nxh5 {[%emt 0:09:08]} Nxh5 {[%emt 0:06:45]} 18. Bg5 {[%emt 0:01:54]} Qe6 {[%emt 0:00:08]} 19. Bxd8 {[%emt 0:00:10]} Nhf4 {[%emt 0:00:45]} 20. Nh2 {[%emt 0:08:51]} Nxg2 {[%emt 0:23:00]} 21. Kxg2 {[%emt 0:01:15]} Nf4+ {[%emt 0:00:06]} 22. Kh1 {[%emt 0:00:19]} Qxh3 {[%emt 0:02:17]} 23. Rg1 {[%emt 0:01:44]} exd4 {[%emt 0:01:58]} 24. Bf6 {[%emt 0:02:04]} d3 {[%emt 0:01:06]} 25. Rxg7+ {[%emt 0:00:19]} Kf8 {[%emt 0:00:07]} 26. Qg1 {[%emt 0:00:46]} Ke8 {[%emt 0:00:57]} 27. Rxf7 {[%emt 0:00:28]} Bg4 {[%emt 0:02:45]} 28. Qxg4 {[%emt 0:00:29]} Qxg4 {[%emt 0:00:20]} 29. Re7+ {[%emt 0:00:07]} Kf8 {[%emt 0:00:04]} 30. Nxg4 {[%emt 0:00:04]} dxc2 {[%emt 0:00:09]} 31. Rc1 {[%emt 0:00:44]} 1-0

[Event "AUT Bundesliga 2024-25"]
[Site "Austria"]
[Date "2025.04.05"]
[Round "10.35"]
[White "Lovrinovic, Christian"]
[Black "Bacrot, Etienne"]
[Result "*"]
[Annotator "TA"]
[ECO "E20"]
[WhiteElo "2062"]
[BlackElo "2633"]
[PlyCount "57"]
[EventDate "2024.08.28"]
[EventType "team-tourn"]
[EventCountry "AUT"]
[SourceTitle "playchess.com"]
[Source "ChessBase"]
[SourceQuality "1"]
[TimeControl "40/5400+30:1800+30"]

{[%evp 9,57,8,-2,-1,0,0,0,-6,-5,-4,0,0,0,0,0,9,4,0,0,-40,-28,-36,-33,-62,-23,-13,-12,-19,-16,-41,0,0,0,0,0,0,0,0,143,14,14,5,58,43,47,58,52,32,90,62]} 1. d4 {[%emt 0:00:01]} Nf6 {[%emt 0:00:08]} 2. c4 {[%emt 0:00:06]} e6 {[%emt 0:00:24]} 3. Nc3 {[%emt 0:00:04]} Bb4 {[%emt 0:00:07]} 4. g3 {[%emt 0:00:04]} O-O {[%emt 0:02:56]} 5. Bg2 {[%emt 0:00:44]} d5 {[%emt 0:01:06]} 6. a3 {[%emt 0:00:13] E20: Nimzo-Indian: 4 g3 and 4 f3.} Bxc3+ {[%emt 0:02:40] The main line 6...Bxc3+ scores better than 6...Be7.} 7. bxc3 {[%emt 0:00:01]} dxc4 {[%emt 0:00:12][%cal Oc7c5]} 8. Qa4 {[%emt 0:00:06] The position is equal.} Bd7 {[%emt 0:03:37][%cal Bc8d7,Bd7c6,Bc6b5,Bb5c4][%mdl 32]} 9. Qxc4 {[%emt 0:00:02]} Bc6 {[%emt 0:00:07]} 10. f3 {[%emt 0:00:02]} Qd7 {[%emt 0:01:31]} 11. e4 {[%emt 0:02:18]} Bb5 {[%emt 0:03:23]} 12. Qa2 {[%emt 1:32:49]} Qc6 $146 {[%emt 0:01:14]} (12... c5 13. a4 Ba6 14. Ba3 b6 15. dxc5 Rc8 16. Ne2 Qxa4 17. cxb6 axb6 18. Bb4 Qxa2 19. Rxa2 {0-1 Stupak,K (2541)-Volokitin,A (2639) EU-ch 19th Batumi 2018 (3)}) 13. a4 {[%emt 0:08:38]} Bc4 {[%emt 0:04:43]} (13... Qxc3+ $2 14. Bd2 Qxd4 15. axb5 $18) 14. Qd2 {[%emt 0:00:46]} Qa6 {[%emt 0:01:51][%cal Oc7c5]} 15. Ne2 {[%emt 0:01:23]} c5 {[%emt 0:01:56]} 16. Ba3 {[%emt 0:01:02]} Nbd7 {[%emt 0:00:51][%cal Of8d8]} 17. Kf2 {[%emt 0:00:08]} Rfd8 {[%emt 0:00:47][%cal Od7e5]} 18. Qe3 {[%emt 0:00:09]} (18. Rhd1 {is more complex.} Ne5 19. Nf4 b6 20. Qc2) 18... Rac8 {[%emt 0:07:04]} 19. Rhe1 {[%emt 0:00:19]} b6 {[%emt 0:10:16]} (19... Qxa4 $6 20. Bxc5 Qc6 21. Bb4 $14 (21. Bxa7 b6 $11)) 20. Kg1 {[%emt 0:03:48]} Qa5 {[%emt 0:03:59]} 21. Bb2 {[%emt 0:17:53]} Nb8 {[%emt 0:02:31]} 22. g4 {[%emt 0:07:59]} Nc6 {[%emt 0:02:22]} 23. Ng3 {[%emt 0:01:43]} Rc7 {[%emt 0:02:45] [#]} (23... Ba6 $11) 24. g5 {[%emt 0:01:34]} ({White has to play} 24. d5 $1 $16 {[%cal Rd5c6]}) 24... Ne8 $1 $11 {[%emt 0:00:08]} 25. f4 {[%emt 0:52:32][%cal Od4d5] Hoping for d5!.} cxd4 {[%emt 0:02:32]} (25... Qa6 $1 $11) 26. cxd4 $14 {[%emt 0:00:15]} Qb4 {[%emt 0:00:04]} 27. Bc3 {[%emt 0:02:58]} Qf8 {[%emt 0:00:05]} 28. Rab1 {[%emt 0:01:28] Repels Nb4} ({Reject} 28. d5 exd5 29. exd5 Re7 $11) 28... Rcd7 {[%emt 0:02:47] Mistake:       	White=1     	Black=3      Inaccurate:     	White=3     	Black=2      OK:         	White=13    	Black=12     Strong:       	---       	Black=1} ({Black should try} 28... Ba2 $14) 29. Red1 {[%emt 0:01:15] Weighted Error Value: White=0.12 (very precise) /Black=0.17 (very precise)} *

[Event "AUT Bundesliga 2024-25"]
[Site "Austria"]
[Date "2025.04.05"]
[Round "10.36"]
[White "Balogh, Csaba"]
[Black "Karelina, Polina"]
[Result "*"]
[Annotator "TA"]
[ECO "B07"]
[WhiteElo "2542"]
[BlackElo "1903"]
[PlyCount "38"]
[EventDate "2024.08.28"]
[EventType "team-tourn"]
[EventCountry "AUT"]
[SourceTitle "playchess.com"]
[Source "ChessBase"]
[SourceQuality "1"]
[TimeControl "40/5400+30:1800+30"]

{[%evp 9,38,48,68,54,69,45,82,76,84,91,120,113,122,120,117,83,108,119,151,119,161,156,155,144,221,229,268,265,281,288,288]} 1. e4 {[%emt 0:00:08]} d6 {[%emt 0:00:18]} 2. d4 {[%emt 0:00:18]} Nf6 {[%emt 0:00:11]} 3. Nc3 {[%emt 0:00:10]} g6 {[%emt 0:00:19]} 4. Bg5 {[%emt 0:01:19]} c6 {[%emt 0:00:22]} 5. f4 {[%emt 0:03:00][%cal Bf2f4,Bf4e5][%mdl 32]} b5 {[%emt 0:02:22]} 6. a3 {[%emt 0:02:11] B07: Pirc Defence: Miscellaneous Systems.} Bg7 {[%emt 0:07:55]} 7. Nf3 {[%emt 0:11:54]} a6 {[%emt 0:05:10]} 8. Bd3 {[%emt 0:01:18] White is better.} Nbd7 $146 {[%emt 0:04:38][%cal Bb8d7,Bd7f8,Bf8e6][%mdl 32]} (8... Be6 9. O-O Bc4 10. Kh1 Bxd3 11. Qxd3 Nbd7 12. e5 dxe5 13. fxe5 Ng4 14. h3 Nh6 15. Qe4 O-O 16. Qxc6 {1-0 Baragano Campa,D (1993)-Zabala Perez,A Benidorm U16 op 2006 (2)}) 9. e5 {[%emt 0:02:55]} dxe5 {[%emt 0:03:29]} 10. fxe5 {[%emt 0:02:28]} ({Don't do} 10. dxe5 $6 Nd5 $14) 10... Nd5 {[%emt 0:01:04]} 11. Nxd5 {[%emt 0:01:24]} cxd5 {[%emt 0:00:07]} 12. O-O {[%emt 0:09:43] White is more active.} Qb6 {[%emt 0:08:35] Black is weak on the dark squares} 13. Kh1 {[%emt 0:01:58]} Nf8 {[%emt 0:03:47] [#]} 14. a4 $1 {[%emt 0:02:03][%cal Ba3a4,Ba4a5][%mdl 32] Strongly threatening axb5.} b4 {[%emt 0:04:58]} 15. a5 {[%emt 0:01:05]} Qa7 {[%emt 0:00:39]} 16. Bd2 {[%emt 0:13:38]} Bg4 {[%emt 0:04:52]} (16... Ne6 $16 {was worth a try.} 17. Bxb4 Nf4) 17. h3 {[%emt 0:02:25]} h5 {[%emt 0:05:18]} 18. Bxb4 {[%emt 0:00:19]} (18. hxg4 hxg4+ 19. Kg1 (19. Nh2 Bxe5 20. Bf4 Bxf4 $15) 19... gxf3 $17) 18... Ne6 {[%emt 0:02:14]} 19. c3 {[%emt 0:01:14] Mistake:       	---       	Black=1      Inaccurate:     	---       	Black=3      OK:         	White=8     	Black=4      Best:        	White=1     	---} (19. hxg4 hxg4+ 20. Kg1 (20. Nh2 $2 g3 $19) 20... gxf3 $19 (20... Nxd4 $2 21. Nxd4 Qxd4+ 22. Rf2 $19)) 19... Qd7 {[%emt 0:03:50] Weighted Error Value: White=0.06 (flawless) /Black=0.24 (precise)} *